[Event "Early-Titled-Tuesday-Blitz-January-23-2024"]
[Site "Chess.com"]
[Date "2024.01.23"]
[Round "2"]
[White "arnash_bauyrzhan"]
[Black "GatoRojo150"]
[Result "0-1"]
[WhiteElo "2202"]
[BlackElo "2606"]
[TimeControl "180+1"]
[EndTime "8:17:27 PST"]
[Termination "GatoRojo150 won on time"]

1. e4 {[%clk 0:02:37.8]} 1... e5 {[%clk 0:02:59.9]} 2. Nf3 {[%clk 0:02:36.9]}
2... Nc6 {[%clk 0:03:00.1]} 3. d4 {[%clk 0:02:36.2]} 3... exd4 {[%clk
0:03:00.2]} 4. Bc4 {[%clk 0:02:35.9]} 4... Nf6 {[%clk 0:03:00.4]} 5. O-O {[%clk
0:02:35.3]} 5... Nxe4 {[%clk 0:03:00.4]} 6. Re1 {[%clk 0:02:34.8]} 6... d5
{[%clk 0:03:00.7]} 7. Bxd5 {[%clk 0:02:34.9]} 7... Qxd5 {[%clk 0:03:01.6]} 8.
Nc3 {[%clk 0:02:35]} 8... Qd8 {[%clk 0:03:01.7]} 9. Nxe4 {[%clk 0:02:34.3]} 9...
Be7 {[%clk 0:03:01.2]} 10. Bg5 {[%clk 0:02:27.5]} 10... f6 {[%clk 0:03:01.3]}
11. Bf4 {[%clk 0:02:16]} 11... O-O {[%clk 0:02:58.8]} 12. Qe2 {[%clk 0:02:09]}
12... Kh8 {[%clk 0:02:57.8]} 13. Rad1 {[%clk 0:02:07.7]} 13... Bg4 {[%clk
0:02:57.1]} 14. c3 {[%clk 0:02:04.2]} 14... f5 {[%clk 0:02:41.7]} 15. Ng3 {[%clk
0:01:56.4]} 15... Bd6 {[%clk 0:02:37]} 16. Bxd6 {[%clk 0:01:39]} 16... Qxd6
{[%clk 0:02:37.9]} 17. h3 {[%clk 0:01:38.5]} 17... Bxf3 {[%clk 0:02:36]} 18.
Qxf3 {[%clk 0:01:38.6]} 18... f4 {[%clk 0:02:16.5]} 19. Ne4 {[%clk 0:01:37.3]}
19... Qd5 {[%clk 0:02:11.3]} 20. cxd4 {[%clk 0:01:29.7]} 20... Qxa2 {[%clk
0:02:10.7]} 21. d5 {[%clk 0:01:28.2]} 21... Ne5 {[%clk 0:02:09.4]} 22. Qh5
{[%clk 0:01:25.5]} 22... Nf7 {[%clk 0:01:57.9]} 23. Ng5 {[%clk 0:01:16.4]} 23...
Nxg5 {[%clk 0:01:38.1]} 24. Qxg5 {[%clk 0:01:17.3]} 24... Qxb2 {[%clk
0:01:30.1]} 25. Re7 {[%clk 0:01:17.1]} 25... Rac8 {[%clk 0:01:20.1]} 26. Rde1
{[%clk 0:00:43.2]} 26... Qf6 {[%clk 0:01:19.2]} 27. Qh5 {[%clk 0:00:41.6]} 27...
Qf5 {[%clk 0:01:06.7]} 28. Qf3 {[%clk 0:00:34.6]} 28... h6 {[%clk 0:01:05.1]}
29. R1e5 {[%clk 0:00:12.9]} 29... Qf6 {[%clk 0:01:03.8]} 30. R5e6 {[%clk
0:00:10.5]} 30... Qa1+ {[%clk 0:01:02.6]} 31. Kh2 {[%clk 0:00:10.7]} 31... Qd4
{[%clk 0:00:58.1]} 32. Qh5 {[%clk 0:00:09.7]} 32... Rf6 {[%clk 0:00:38.4]} 33.
Re8+ {[%clk 0:00:09.9]} 33... Rxe8 {[%clk 0:00:38.6]} 34. Rxe8+ {[%clk
0:00:07.6]} 34... Kh7 {[%clk 0:00:38.9]} 35. Re7 {[%clk 0:00:05.8]} 35... Qxf2
{[%clk 0:00:32.3]} 36. Rxc7 {[%clk 0:00:04.7]} 36... Qg3+ {[%clk 0:00:32.4]} 37.
Kh1 {[%clk 0:00:04.3]} 37... f3 {[%clk 0:00:32.7]} 0-1

[Event "Early-Titled-Tuesday-Blitz-January-23-2024"]
[Site "Chess.com"]
[Date "2024.01.23"]
[Round "2"]
[White "deribas12345"]
[Black "hmatyi07"]
[Result "1-0"]
[WhiteElo "2477"]
[BlackElo "2176"]
[TimeControl "180+1"]
[EndTime "8:17:27 PST"]
[Termination "deribas12345 won by checkmate"]

1. d4 {[%clk 0:03:00.9]} 1... Nf6 {[%clk 0:02:59.4]} 2. c4 {[%clk 0:03:01.2]}
2... e6 {[%clk 0:02:59.2]} 3. Nc3 {[%clk 0:03:01.5]} 3... d5 {[%clk 0:02:59]} 4.
cxd5 {[%clk 0:03:01.6]} 4... exd5 {[%clk 0:02:59.9]} 5. Bg5 {[%clk 0:03:01.8]}
5... c6 {[%clk 0:02:56.1]} 6. e3 {[%clk 0:03:01.9]} 6... Bf5 {[%clk 0:02:56]} 7.
Qf3 {[%clk 0:03:00.6]} 7... Be6 {[%clk 0:02:56.3]} 8. Bxf6 {[%clk 0:03:00.5]}
8... Qxf6 {[%clk 0:02:57.2]} 9. Qxf6 {[%clk 0:03:00.2]} 9... gxf6 {[%clk
0:02:58.1]} 10. h4 {[%clk 0:02:55.9]} 10... a5 {[%clk 0:02:53]} 11. Nh3 {[%clk
0:02:54.1]} 11... Bd6 {[%clk 0:02:50.8]} 12. g3 {[%clk 0:02:49.4]} 12... a4
{[%clk 0:02:48.2]} 13. Nf4 {[%clk 0:02:48]} 13... a3 {[%clk 0:02:43.1]} 14. b3
{[%clk 0:02:46.9]} 14... Nd7 {[%clk 0:02:32.1]} 15. O-O-O {[%clk 0:02:40.3]}
15... Ke7 {[%clk 0:02:23.3]} 16. Bd3 {[%clk 0:02:37.5]} 16... f5 {[%clk
0:02:04.6]} 17. Kc2 {[%clk 0:02:22.7]} 17... Nf6 {[%clk 0:02:01.8]} 18. Na4
{[%clk 0:01:58.8]} 18... Ne4 {[%clk 0:01:43]} 19. Rhf1 {[%clk 0:01:57.1]} 19...
Bb4 {[%clk 0:01:07.5]} 20. Bxe4 {[%clk 0:01:44.1]} 20... fxe4 {[%clk 0:01:03.7]}
21. Nxe6 {[%clk 0:01:44.6]} 21... Kxe6 {[%clk 0:01:00.8]} 22. Rc1 {[%clk
0:01:42.1]} 22... b5 {[%clk 0:00:23.2]} 23. Nc3 {[%clk 0:01:40.5]} 23... Bxc3
{[%clk 0:00:22.8]} 24. Kxc3 {[%clk 0:01:40.6]} 24... Rhb8 {[%clk 0:00:22]} 25.
Kb4 {[%clk 0:01:36.5]} 25... Kd6 {[%clk 0:00:22.5]} 26. Rc5 {[%clk 0:01:33]}
26... Rb6 {[%clk 0:00:21.6]} 27. f3 {[%clk 0:01:29.3]} 27... Re8 {[%clk
0:00:17.9]} 28. fxe4 {[%clk 0:01:01.9]} 28... Rxe4 {[%clk 0:00:17.4]} 29. Rxf7
{[%clk 0:01:02.4]} 29... Rxe3 {[%clk 0:00:17.7]} 30. Rxh7 {[%clk 0:01:00.5]}
30... Rxg3 {[%clk 0:00:17.9]} 31. Rh6+ {[%clk 0:00:58.4]} 31... Kd7 {[%clk
0:00:17.9]} 32. Rxd5+ {[%clk 0:00:56.8]} 32... cxd5 {[%clk 0:00:13.1]} 33. Rxb6
{[%clk 0:00:56.2]} 33... Rg4 {[%clk 0:00:13.5]} 34. Kc5 {[%clk 0:00:54.7]} 34...
Rxh4 {[%clk 0:00:11.8]} 35. Ra6 {[%clk 0:00:49.4]} 35... b4 {[%clk 0:00:09.6]}
36. Kxd5 {[%clk 0:00:40.5]} 36... Rh2 {[%clk 0:00:09.7]} 37. Ra7+ {[%clk
0:00:38.2]} 37... Kd8 {[%clk 0:00:09.9]} 38. Kc4 {[%clk 0:00:35.6]} 38... Rxa2
{[%clk 0:00:09.8]} 39. Kxb4 {[%clk 0:00:36.1]} 39... Rd2 {[%clk 0:00:09.4]} 40.
Kc5 {[%clk 0:00:34.9]} 40... a2 {[%clk 0:00:08.8]} 41. b4 {[%clk 0:00:33.3]}
41... Rc2+ {[%clk 0:00:08.5]} 42. Kd6 {[%clk 0:00:33.1]} 42... Rb2 {[%clk
0:00:07.5]} 43. Ra8# {[%clk 0:00:32.6]} 1-0

[Event "Early-Titled-Tuesday-Blitz-January-23-2024"]
[Site "Chess.com"]
[Date "2024.01.23"]
[Round "2"]
[White "sokidze"]
[Black "TheoSlade"]
[Result "1-0"]
[WhiteElo "2834"]
[BlackElo "2464"]
[TimeControl "180+1"]
[EndTime "8:17:28 PST"]
[Termination "sokidze won on time"]

1. d4 {[%clk 0:03:00.9]} 1... d5 {[%clk 0:03:00.1]} 2. c4 {[%clk 0:03:01]} 2...
e6 {[%clk 0:03:00.8]} 3. Nc3 {[%clk 0:03:00.5]} 3... a6 {[%clk 0:03:01.3]} 4.
cxd5 {[%clk 0:02:57.9]} 4... exd5 {[%clk 0:03:02.2]} 5. Nf3 {[%clk 0:02:56.7]}
5... c6 {[%clk 0:03:02.8]} 6. e4 {[%clk 0:02:54.3]} 6... dxe4 {[%clk 0:03:01.4]}
7. Ng5 {[%clk 0:02:54.4]} 7... Be7 {[%clk 0:02:57.6]} 8. Bc4 {[%clk 0:02:29.4]}
8... Bxg5 {[%clk 0:02:52.9]} 9. Qh5 {[%clk 0:02:29]} 9... Be7 {[%clk 0:02:46.3]}
10. Qxf7+ {[%clk 0:02:28.2]} 10... Kd7 {[%clk 0:02:46.6]} 11. Qxg7 {[%clk
0:01:51.6]} 11... Nf6 {[%clk 0:02:46.1]} 12. a4 {[%clk 0:01:34.1]} 12... Kc7
{[%clk 0:02:40.3]} 13. Bf4+ {[%clk 0:00:27.8]} 13... Kb6 {[%clk 0:02:39.7]} 14.
a5+ {[%clk 0:00:28.4]} 14... Ka7 {[%clk 0:02:39]} 15. d5 {[%clk 0:00:28.5]}
15... Rg8 {[%clk 0:01:21.8]} 16. dxc6 {[%clk 0:00:12.9]} 16... Nxc6 {[%clk
0:00:41.2]} 17. Bxg8 {[%clk 0:00:12.8]} 17... Qxg8 {[%clk 0:00:37.2]} 18. Be3+
{[%clk 0:00:09]} 18... Kb8 {[%clk 0:00:37.6]} 19. Qh6 {[%clk 0:00:05.6]} 19...
Kc7 {[%clk 0:00:09.9]} 20. O-O-O {[%clk 0:00:02.4]} 20... Bg4 {[%clk 0:00:03.7]}
21. Qf4+ {[%clk 0:00:02.2]} 21... Kc8 {[%clk 0:00:04.2]} 22. Bb6 {[%clk
0:00:02.5]} 22... Ne8 {[%clk 0:00:01.9]} 23. Rd2 {[%clk 0:00:02.3]} 23... Be6
{[%clk 0:00:01.5]} 24. Qxe4 {[%clk 0:00:02.2]} 24... Qg6 {[%clk 0:00:01.1]} 25.
Qe2 {[%clk 0:00:01.9]} 25... Nd6 {[%clk 0:00:01.5]} 26. Re1 {[%clk 0:00:02.5]}
26... Bc4 {[%clk 0:00:02]} 27. Qf3 {[%clk 0:00:01.9]} 27... Qf6 {[%clk
0:00:01.4]} 28. Qh3+ {[%clk 0:00:02.5]} 1-0

[Event "Early-Titled-Tuesday-Blitz-January-23-2024"]
[Site "Chess.com"]
[Date "2024.01.23"]
[Round "2"]
[White "DTChess"]
[Black "GroovyKettle"]
[Result "0-1"]
[WhiteElo "2622"]
[BlackElo "2978"]
[TimeControl "180+1"]
[EndTime "8:17:32 PST"]
[Termination "GroovyKettle won by resignation"]

1. e4 {[%clk 0:03:00.9]} 1... c5 {[%clk 0:02:53]} 2. Nf3 {[%clk 0:03:00.7]} 2...
d6 {[%clk 0:02:52]} 3. Nc3 {[%clk 0:03:01.3]} 3... Nf6 {[%clk 0:02:52]} 4. d4
{[%clk 0:03:01.3]} 4... cxd4 {[%clk 0:02:52.1]} 5. Nxd4 {[%clk 0:03:02.2]} 5...
Bd7 {[%clk 0:02:51.7]} 6. Bc4 {[%clk 0:03:02]} 6... Nc6 {[%clk 0:02:50.7]} 7.
Bb3 {[%clk 0:03:02.4]} 7... Rc8 {[%clk 0:02:48.5]} 8. f3 {[%clk 0:03:02.5]} 8...
g6 {[%clk 0:02:47.7]} 9. Be3 {[%clk 0:03:02.2]} 9... Bg7 {[%clk 0:02:48.3]} 10.
Qd2 {[%clk 0:03:02.6]} 10... O-O {[%clk 0:02:48.7]} 11. h4 {[%clk 0:03:02.6]}
11... Ne5 {[%clk 0:02:44.2]} 12. h5 {[%clk 0:02:58.4]} 12... Nxh5 {[%clk
0:02:31.3]} 13. Bh6 {[%clk 0:02:56.6]} 13... Qb6 {[%clk 0:02:28.2]} 14. Bxg7
{[%clk 0:02:49.6]} 14... Kxg7 {[%clk 0:02:26.7]} 15. O-O-O {[%clk 0:02:38.7]}
15... Rh8 {[%clk 0:02:16.7]} 16. g4 {[%clk 0:02:37.2]} 16... Nf6 {[%clk
0:02:16.4]} 17. Qh6+ {[%clk 0:02:32.5]} 17... Kg8 {[%clk 0:02:09.7]} 18. Nf5
{[%clk 0:01:55.8]} 18... gxf5 {[%clk 0:01:12.9]} 19. gxf5 {[%clk 0:01:31.8]}
19... Nxf3 {[%clk 0:01:11.9]} 20. Rh3 {[%clk 0:00:57.8]} 20... Qf2 {[%clk
0:00:57]} 21. Rxf3 {[%clk 0:00:40.6]} 21... Qxf3 {[%clk 0:00:56.9]} 22. Rg1+
{[%clk 0:00:36.1]} 22... Ng4 {[%clk 0:00:55.8]} 23. Nd5 {[%clk 0:00:29.5]} 23...
Re8 {[%clk 0:00:45.1]} 24. Qg5+ {[%clk 0:00:26.5]} 24... Kf8 {[%clk 0:00:44.8]}
25. Rxg4 {[%clk 0:00:25]} 25... Qf1+ {[%clk 0:00:33.7]} 26. Kd2 {[%clk
0:00:25.1]} 26... Qf2+ {[%clk 0:00:33.6]} 27. Kd3 {[%clk 0:00:23.4]} 27... Qf1+
{[%clk 0:00:26.6]} 28. Ke3 {[%clk 0:00:23]} 28... Qc1+ {[%clk 0:00:26.5]} 29.
Ke2 {[%clk 0:00:21.3]} 29... Qxg5 {[%clk 0:00:26.5]} 30. Rxg5 {[%clk 0:00:21.8]}
30... Bc6 {[%clk 0:00:24.8]} 31. Kf3 {[%clk 0:00:21.1]} 31... Bxd5 {[%clk
0:00:20.3]} 32. Bxd5 {[%clk 0:00:21]} 32... b6 {[%clk 0:00:20.9]} 33. c3 {[%clk
0:00:20.9]} 33... e6 {[%clk 0:00:20.8]} 34. fxe6 {[%clk 0:00:20.6]} 34... fxe6
{[%clk 0:00:21.7]} 35. Bc4 {[%clk 0:00:20.7]} 35... Kf7 {[%clk 0:00:21.6]} 36.
Kf4 {[%clk 0:00:20.4]} 36... Kf6 {[%clk 0:00:21.4]} 37. Rh5 {[%clk 0:00:20.4]}
37... Kg6 {[%clk 0:00:20.4]} 38. Rh2 {[%clk 0:00:20.2]} 38... Rhf8+ {[%clk
0:00:19.7]} 39. Kg4 {[%clk 0:00:20.7]} 39... e5 {[%clk 0:00:19]} 40. Bd5 {[%clk
0:00:19.9]} 40... Rf4+ {[%clk 0:00:19.5]} 41. Kg3 {[%clk 0:00:20.3]} 41... Ref8
{[%clk 0:00:20.3]} 42. Rg2 {[%clk 0:00:19.6]} 42... h5 {[%clk 0:00:20.1]} 43.
Kh3+ {[%clk 0:00:19.6]} 43... Kh6 {[%clk 0:00:20.6]} 44. a4 {[%clk 0:00:18.3]}
44... Rf3+ {[%clk 0:00:20.5]} 45. Kh2 {[%clk 0:00:18.4]} 45... Rf2 {[%clk
0:00:21.2]} 46. Kh3 {[%clk 0:00:17.9]} 46... R8f3+ {[%clk 0:00:21.2]} 47. Kh2
{[%clk 0:00:17.9]} 47... Rxg2+ {[%clk 0:00:21.5]} 48. Kxg2 {[%clk 0:00:18.8]}
48... Rd3 {[%clk 0:00:22]} 0-1

[Event "Early-Titled-Tuesday-Blitz-January-23-2024"]
[Site "Chess.com"]
[Date "2024.01.23"]
[Round "2"]
[White "sterpfi"]
[Black "Schachmalanders"]
[Result "1-0"]
[WhiteElo "2215"]
[BlackElo "2462"]
[TimeControl "180+1"]
[EndTime "8:17:32 PST"]
[Termination "sterpfi won by resignation"]

1. e4 {[%clk 0:03:00.9]} 1... c5 {[%clk 0:02:55.4]} 2. Nf3 {[%clk 0:03:00.7]}
2... e6 {[%clk 0:02:55.6]} 3. c3 {[%clk 0:03:00.8]} 3... d5 {[%clk 0:02:52]} 4.
exd5 {[%clk 0:02:58.4]} 4... Qxd5 {[%clk 0:02:51.5]} 5. d4 {[%clk 0:02:57.5]}
5... Nf6 {[%clk 0:02:51.2]} 6. Na3 {[%clk 0:02:57.5]} 6... Nc6 {[%clk 0:02:49]}
7. Be3 {[%clk 0:02:56]} 7... cxd4 {[%clk 0:02:48.6]} 8. Nb5 {[%clk 0:02:56.3]}
8... Qd8 {[%clk 0:02:49.2]} 9. Nbxd4 {[%clk 0:02:56.5]} 9... Bd7 {[%clk
0:02:48.9]} 10. Bd3 {[%clk 0:02:44.4]} 10... Be7 {[%clk 0:02:47.3]} 11. O-O
{[%clk 0:02:44.3]} 11... O-O {[%clk 0:02:47.5]} 12. Bc2 {[%clk 0:02:39.8]} 12...
Qc7 {[%clk 0:02:38.2]} 13. Qd3 {[%clk 0:02:27.6]} 13... Rfd8 {[%clk 0:02:31.3]}
14. Bg5 {[%clk 0:02:22.3]} 14... h6 {[%clk 0:02:27]} 15. Bxf6 {[%clk 0:02:15.1]}
15... Bxf6 {[%clk 0:02:27.9]} 16. Qh7+ {[%clk 0:02:14.1]} 16... Kf8 {[%clk
0:02:28.1]} 17. Rfe1 {[%clk 0:01:46.3]} 17... Nxd4 {[%clk 0:02:05.2]} 18. Nxd4
{[%clk 0:01:37.1]} 18... Bc6 {[%clk 0:01:13.2]} 19. Nf5 {[%clk 0:01:07.2]} 19...
g6 {[%clk 0:00:49]} 20. Nxh6 {[%clk 0:00:56.8]} 20... Be8 {[%clk 0:00:37.5]} 21.
Rxe6 {[%clk 0:00:42.8]} 21... fxe6 {[%clk 0:00:21.6]} 22. Qxc7 {[%clk
0:00:43.7]} 22... Rd7 {[%clk 0:00:19.8]} 23. Qc5+ {[%clk 0:00:36.8]} 23... Kg7
{[%clk 0:00:19.9]} 24. Ng4 {[%clk 0:00:35.8]} 24... Rad8 {[%clk 0:00:16.4]} 25.
Nxf6 {[%clk 0:00:33]} 25... Kxf6 {[%clk 0:00:17.3]} 26. Qxa7 {[%clk 0:00:22.4]}
26... Rd2 {[%clk 0:00:14.9]} 27. Bb3 {[%clk 0:00:22.5]} 27... Rxb2 {[%clk
0:00:13.3]} 28. Qxb7 {[%clk 0:00:17.5]} 28... Bf7 {[%clk 0:00:11.1]} 29. Qf3+
{[%clk 0:00:16.4]} 29... Kg7 {[%clk 0:00:11.3]} 30. h4 {[%clk 0:00:16.3]} 30...
Rd7 {[%clk 0:00:06.7]} 31. h5 {[%clk 0:00:16.2]} 31... gxh5 {[%clk 0:00:07]} 32.
Re1 {[%clk 0:00:14.8]} 32... Rdd2 {[%clk 0:00:05.6]} 33. Bxe6 {[%clk 0:00:13.8]}
33... Bxe6 {[%clk 0:00:03]} 34. Rxe6 {[%clk 0:00:13.7]} 34... Rxf2 {[%clk
0:00:03.7]} 35. Qxf2 {[%clk 0:00:14]} 35... Rxf2 {[%clk 0:00:04.6]} 36. Kxf2
{[%clk 0:00:14.9]} 36... Kf7 {[%clk 0:00:05.3]} 37. Re5 {[%clk 0:00:14.8]} 37...
h4 {[%clk 0:00:06.2]} 38. Rh5 {[%clk 0:00:15.1]} 38... h3 {[%clk 0:00:07.1]} 39.
Rxh3 {[%clk 0:00:15.5]} 1-0

[Event "Early-Titled-Tuesday-Blitz-January-23-2024"]
[Site "Chess.com"]
[Date "2024.01.23"]
[Round "2"]
[White "KnightmareJoker"]
[Black "Flaccidmoves"]
[Result "1-0"]
[WhiteElo "2139"]
[BlackElo "2436"]
[TimeControl "180+1"]
[EndTime "8:17:34 PST"]
[Termination "KnightmareJoker won by checkmate"]

1. e4 {[%clk 0:03:00.9]} 1... g6 {[%clk 0:02:59.3]} 2. d4 {[%clk 0:03:00.8]}
2... Bg7 {[%clk 0:02:59.7]} 3. Be3 {[%clk 0:03:00.6]} 3... d6 {[%clk 0:02:59.7]}
4. Nc3 {[%clk 0:02:56.4]} 4... a6 {[%clk 0:02:59.1]} 5. f3 {[%clk 0:02:55.8]}
5... b5 {[%clk 0:02:58.9]} 6. Qd2 {[%clk 0:02:56]} 6... Bb7 {[%clk 0:02:55.8]}
7. Bd3 {[%clk 0:02:53.2]} 7... Nd7 {[%clk 0:02:55]} 8. Nge2 {[%clk 0:02:53.3]}
8... c5 {[%clk 0:02:53.7]} 9. dxc5 {[%clk 0:02:41.2]} 9... Nxc5 {[%clk
0:02:54.6]} 10. O-O {[%clk 0:02:36.1]} 10... Nf6 {[%clk 0:02:41.7]} 11. Ng3
{[%clk 0:02:25.5]} 11... O-O {[%clk 0:02:35.4]} 12. Bh6 {[%clk 0:02:23.5]} 12...
b4 {[%clk 0:02:28.2]} 13. Nce2 {[%clk 0:02:17.5]} 13... Qb6 {[%clk 0:02:11.6]}
14. Kh1 {[%clk 0:02:10.4]} 14... e5 {[%clk 0:02:04.4]} 15. Bxg7 {[%clk
0:02:10.3]} 15... Kxg7 {[%clk 0:02:04.3]} 16. Qg5 {[%clk 0:02:05.7]} 16... Ng8
{[%clk 0:02:03.9]} 17. f4 {[%clk 0:01:40.3]} 17... Ne6 {[%clk 0:01:52.2]} 18.
Qg4 {[%clk 0:01:30.7]} 18... Nf6 {[%clk 0:01:32]} 19. Qh4 {[%clk 0:01:30.5]}
19... exf4 {[%clk 0:01:25.1]} 20. Nxf4 {[%clk 0:01:28.5]} 20... Nxf4 {[%clk
0:01:11.8]} 21. Rxf4 {[%clk 0:01:25.2]} 21... Ng8 {[%clk 0:01:04.3]} 22. Raf1
{[%clk 0:01:13.9]} 22... Qd4 {[%clk 0:00:52]} 23. Rg4 {[%clk 0:01:01.5]} 23...
Kh8 {[%clk 0:00:47.8]} 24. b3 {[%clk 0:00:51.8]} 24... Rac8 {[%clk 0:00:38.5]}
25. Qh3 {[%clk 0:00:46.5]} 25... Rc5 {[%clk 0:00:33.6]} 26. Rh4 {[%clk
0:00:46.2]} 26... h5 {[%clk 0:00:27.8]} 27. Nf5 {[%clk 0:00:37.1]} 27... Rxf5
{[%clk 0:00:15.3]} 28. exf5 {[%clk 0:00:35]} 28... Qg7 {[%clk 0:00:14.4]} 29. f6
{[%clk 0:00:23.6]} 29... Nxf6 {[%clk 0:00:08.4]} 30. Qf3 {[%clk 0:00:20]} 30...
Nh7 {[%clk 0:00:08.2]} 31. Qxb7 {[%clk 0:00:19.2]} 31... Nf6 {[%clk 0:00:04]}
32. Qf3 {[%clk 0:00:18.7]} 32... Kg8 {[%clk 0:00:03.9]} 33. Qxf6 {[%clk
0:00:18.5]} 33... Qh6 {[%clk 0:00:02.7]} 34. Qf3 {[%clk 0:00:16.3]} 34... Kg7
{[%clk 0:00:02.4]} 35. Rf4 {[%clk 0:00:16.4]} 35... Qg5 {[%clk 0:00:02.8]} 36.
Rxf7+ {[%clk 0:00:16.6]} 36... Rxf7 {[%clk 0:00:02.6]} 37. Qxf7+ {[%clk
0:00:17.5]} 37... Kh6 {[%clk 0:00:03.1]} 38. Qf8+ {[%clk 0:00:18]} 38... Kh7
{[%clk 0:00:03.4]} 39. Rf7# {[%clk 0:00:18.7]} 1-0

[Event "Early-Titled-Tuesday-Blitz-January-23-2024"]
[Site "Chess.com"]
[Date "2024.01.23"]
[Round "2"]
[White "AnaKuchava"]
[Black "verrbaa"]
[Result "0-1"]
[WhiteElo "2223"]
[BlackElo "2494"]
[TimeControl "180+1"]
[EndTime "8:17:35 PST"]
[Termination "verrbaa won by resignation"]

1. d4 {[%clk 0:03:00.9]} 1... Nf6 {[%clk 0:02:57.7]} 2. Nf3 {[%clk 0:02:59.5]}
2... g6 {[%clk 0:02:55.6]} 3. c4 {[%clk 0:02:58.3]} 3... Bg7 {[%clk 0:02:55.5]}
4. Nc3 {[%clk 0:02:56.1]} 4... d5 {[%clk 0:02:55.4]} 5. Bg5 {[%clk 0:02:52.8]}
5... Ne4 {[%clk 0:02:49.2]} 6. Bf4 {[%clk 0:02:43.2]} 6... Nxc3 {[%clk
0:02:47.1]} 7. bxc3 {[%clk 0:02:42.8]} 7... O-O {[%clk 0:02:32.7]} 8. e3 {[%clk
0:02:42.4]} 8... c5 {[%clk 0:02:29.1]} 9. Be2 {[%clk 0:02:39.8]} 9... Nc6 {[%clk
0:02:28.1]} 10. O-O {[%clk 0:02:38.5]} 10... cxd4 {[%clk 0:02:19.8]} 11. cxd4
{[%clk 0:02:35.6]} 11... dxc4 {[%clk 0:02:00.3]} 12. Bxc4 {[%clk 0:02:36.5]}
12... b6 {[%clk 0:02:00.4]} 13. Qe2 {[%clk 0:01:57.1]} 13... Bb7 {[%clk
0:01:58]} 14. Rfd1 {[%clk 0:01:52]} 14... Rc8 {[%clk 0:01:48.7]} 15. Rac1 {[%clk
0:01:49]} 15... Qd7 {[%clk 0:01:21.3]} 16. Bb5 {[%clk 0:01:40.3]} 16... Qf5
{[%clk 0:01:19.6]} 17. h3 {[%clk 0:01:31.5]} 17... Nb4 {[%clk 0:01:13]} 18. a3
{[%clk 0:01:16.2]} 18... Bxf3 {[%clk 0:01:03.9]} 19. Qxf3 {[%clk 0:01:09]} 19...
Qxb5 {[%clk 0:01:03.1]} 20. axb4 {[%clk 0:01:08.7]} 20... Qxb4 {[%clk
0:01:03.2]} 21. Qb7 {[%clk 0:01:08.1]} 21... Rxc1 {[%clk 0:00:57.8]} 22. Rxc1
{[%clk 0:01:08.4]} 22... a5 {[%clk 0:00:57.5]} 23. Rc6 {[%clk 0:00:35.9]} 23...
Qe1+ {[%clk 0:00:54.7]} 24. Kh2 {[%clk 0:00:34.1]} 24... Qxf2 {[%clk 0:00:54.9]}
25. Rxb6 {[%clk 0:00:23.1]} 25... Bxd4 {[%clk 0:00:42.4]} 26. Ra6 {[%clk
0:00:11.7]} 26... Bxe3 {[%clk 0:00:38.1]} 27. Bxe3 {[%clk 0:00:11.5]} 27... Qxe3
{[%clk 0:00:38.4]} 28. Rxa5 {[%clk 0:00:11.3]} 28... Qf4+ {[%clk 0:00:32.3]} 29.
Kh1 {[%clk 0:00:10.3]} 29... Rd8 {[%clk 0:00:29.8]} 30. Ra1 {[%clk 0:00:09.7]}
30... Qe5 {[%clk 0:00:17.6]} 31. Rf1 {[%clk 0:00:08.4]} 31... Qe6 {[%clk
0:00:05.4]} 32. Qc7 {[%clk 0:00:03.5]} 32... Rd5 {[%clk 0:00:04.9]} 33. Qc8+
{[%clk 0:00:03.6]} 33... Qxc8 {[%clk 0:00:04.5]} 0-1

[Event "Early-Titled-Tuesday-Blitz-January-23-2024"]
[Site "Chess.com"]
[Date "2024.01.23"]
[Round "2"]
[White "atalz0"]
[Black "Carolina-moon"]
[Result "1-0"]
[WhiteElo "2462"]
[BlackElo "2162"]
[TimeControl "180+1"]
[EndTime "8:17:35 PST"]
[Termination "atalz0 won by resignation"]

1. d4 {[%clk 0:02:58.4]} 1... Nf6 {[%clk 0:02:58.9]} 2. c4 {[%clk 0:02:58.8]}
2... g6 {[%clk 0:02:59.5]} 3. f3 {[%clk 0:02:59.1]} 3... d5 {[%clk 0:02:54.3]}
4. cxd5 {[%clk 0:03:00]} 4... c5 {[%clk 0:02:44.4]} 5. e4 {[%clk 0:03:00.9]}
5... cxd4 {[%clk 0:02:41.5]} 6. Ne2 {[%clk 0:02:53.7]} 6... Bg7 {[%clk
0:02:37.8]} 7. Nxd4 {[%clk 0:02:53.5]} 7... O-O {[%clk 0:02:37.4]} 8. Be2 {[%clk
0:02:53.5]} 8... Na6 {[%clk 0:02:18.5]} 9. Be3 {[%clk 0:02:44.7]} 9... e5 {[%clk
0:02:05]} 10. dxe6 {[%clk 0:02:23.2]} 10... fxe6 {[%clk 0:01:45.4]} 11. O-O
{[%clk 0:02:18.1]} 11... e5 {[%clk 0:01:41.5]} 12. Nb5 {[%clk 0:02:14.2]} 12...
Be6 {[%clk 0:01:33.6]} 13. N1c3 {[%clk 0:01:46]} 13... Qe7 {[%clk 0:01:32.3]}
14. Qd6 {[%clk 0:01:28.9]} 14... Qf7 {[%clk 0:01:08.8]} 15. Rfd1 {[%clk
0:01:25.1]} 15... Rfe8 {[%clk 0:01:01.9]} 16. Qd2 {[%clk 0:00:45.5]} 16... Bf8
{[%clk 0:00:47.6]} 17. Nd6 {[%clk 0:00:45.5]} 17... Bxd6 {[%clk 0:00:42.4]} 18.
Qxd6 {[%clk 0:00:46.4]} 18... Bc4 {[%clk 0:00:35.2]} 19. Bxc4 {[%clk 0:00:44]}
19... Qxc4 {[%clk 0:00:35.6]} 20. Qxf6 {[%clk 0:00:43.3]} 20... Nc5 {[%clk
0:00:13.7]} 21. Bh6 {[%clk 0:00:20.8]} 21... Qf7 {[%clk 0:00:11.8]} 22. Qxf7+
{[%clk 0:00:16.9]} 22... Kxf7 {[%clk 0:00:12.7]} 23. Rd5 {[%clk 0:00:17.2]}
23... Rac8 {[%clk 0:00:11.7]} 24. Rad1 {[%clk 0:00:16.8]} 24... a6 {[%clk
0:00:10.8]} 25. a3 {[%clk 0:00:16.2]} 25... Rc7 {[%clk 0:00:10]} 26. h4 {[%clk
0:00:15.2]} 26... Ne6 {[%clk 0:00:10.7]} 27. Be3 {[%clk 0:00:15]} 27... Rec8
{[%clk 0:00:09.9]} 28. Rd6 {[%clk 0:00:14.8]} 28... Rc6 {[%clk 0:00:09.5]} 29.
Rxc6 {[%clk 0:00:14.7]} 29... Rxc6 {[%clk 0:00:10.4]} 30. Kh2 {[%clk 0:00:14.7]}
30... Kg7 {[%clk 0:00:09.7]} 31. Kh3 {[%clk 0:00:15.1]} 31... h6 {[%clk
0:00:10.2]} 32. g3 {[%clk 0:00:15.5]} 32... g5 {[%clk 0:00:09.8]} 33. Rd2 {[%clk
0:00:15.2]} 33... Kf6 {[%clk 0:00:10.6]} 34. hxg5+ {[%clk 0:00:14.7]} 34... hxg5
{[%clk 0:00:10.7]} 35. Nd5+ {[%clk 0:00:15]} 35... Kg6 {[%clk 0:00:09.6]} 36.
Ne7+ {[%clk 0:00:15]} 1-0